[Event "RUS-ch Rapid 2021"]
[Site "Sochi"]
[Date "2021.10.13"]
[Round "9.2"]
[White "Tsydypov, Zhamsaran"]
[Black "Sjugirov, Sanan"]
[Result "1/2-1/2"]
[ECO "B33"]
[WhiteElo "2526"]
[BlackElo "2663"]
[Annotator "RC"]
[PlyCount "148"]
[EventDate "2021.10.12"]
[EventType "swiss"]
[EventCountry "RUS"]
[SourceTitle "playchess.com"]
[Source "ChessBase"]
[SourceQuality "1"]
[TimeControl "900+10"]

1. e4 {[%emt 0:00:55]} c5 {[%emt 0:00:07]} 2. Nf3 {[%emt 0:00:02]} Nc6 {
[%emt 0:00:06]} 3. d4 {[%emt 0:00:04]} cxd4 {[%emt 0:00:08]} 4. Nxd4 {[%emt 0:
00:00]} Nf6 {[%emt 0:00:00]} 5. Nc3 {[%emt 0:00:13]} e5 {[%emt 0:00:03]} 6.
Ndb5 {[%emt 0:00:05]} d6 {[%emt 0:00:06]} 7. Nd5 {[%emt 0:00:31]} Nxd5 {
[%emt 0:00:00]} 8. exd5 {[%emt 0:00:00]} Nb8 {[%emt 0:00:04]} 9. a4 {[%emt 0:
00:59]} Be7 {[%emt 0:00:29]} 10. Be2 {[%emt 0:00:21]} O-O {[%emt 0:00:01]} 11.
O-O {[%emt 0:00:00]} Nd7 {[%emt 0:00:27]} 12. Be3 {[%emt 0:00:36]} a6 {[%emt 0:
00:00]} 13. Na3 {[%emt 0:00:02]} f5 {[%emt 0:00:30]} 14. f3 {[%emt 0:00:06]} f4
{[%emt 0:04:04]} 15. Bf2 {[%emt 0:00:03]} Bh4 {[%emt 0:00:00]} 16. Qe1 {
[%emt 0:03:22]} Bxf2+ {[%emt 0:00:05]} 17. Qxf2 {[%emt 0:00:00]} Nf6 {[%emt 0:
01:14]} 18. Rfd1 {[%emt 0:00:39]} Bf5 {[%emt 0:00:16]} 19. c3 {[%emt 0:00:09]}
Qe7 {[%emt 0:01:10]} 20. Nc4 {[%emt 0:00:58]} g5 {[%emt 0:00:09]} 21. Bd3 {
[%emt 0:00:48]} Bxd3 {[%emt 0:00:58]} 22. Rxd3 {[%emt 0:00:00]} g4 {[%emt 0:00:
16]} 23. Re1 {[%emt 0:00:16]} Kh8 {[%emt 0:00:48]} 24. Qb6 {[%emt 0:04:42]}
Rad8 {[%emt 0:00:15]} 25. Kf1 {[%emt 0:00:39]} Rg8 {[%emt 0:00:53]} 26. Ke2 {
[%emt 0:00:49]} gxf3+ {[%emt 0:01:11]} 27. gxf3 {[%emt 0:00:00]} Qd7 {[%emt 0:
01:49]} 28. Kd2 {[%emt 0:00:09]} Rg6 {[%emt 0:02:04]} 29. Kc1 {[%emt 0:00:16]}
Ne8 {[%emt 0:01:10]} 30. Qb4 {[%emt 0:00:10]} Qc7 {[%emt 0:00:27]} 31. Rd2 {
[%emt 0:00:42]} Nf6 {[%emt 0:00:02]} 32. h4 {[%emt 0:00:29]} Nd7 {[%emt 0:00:
16]} 33. h5 {[%emt 0:00:00]} Rh6 {[%emt 0:00:12]} 34. Kb1 {[%emt 0:00:19]} Rc8
{[%emt 0:00:35]} 35. Na5 {[%emt 0:01:07]} Nc5 {[%emt 0:00:06]} 36. Rh1 {
[%emt 0:00:16]} Rg8 {[%emt 0:00:31]} 37. Nc4 {[%emt 0:00:19]} Rf6 {[%emt 0:00:
00]} 38. Rdd1 {[%emt 0:00:18]} Rf5 {[%emt 0:00:11]} 39. Ka2 {[%emt 0:00:20]}
Rfg5 {[%emt 0:00:03]} 40. Rh2 {[%emt 0:00:09]} Rg3 {[%emt 0:00:22]} 41. Rf1 {
[%emt 0:00:33]} h6 {[%emt 0:00:31]} 42. Ka3 {[%emt 0:00:13]} Kh7 {[%emt 0:00:
06]} 43. Nd2 {[%emt 0:00:06]} Rg2 {[%emt 0:00:13]} 44. Rxg2 {[%emt 0:00:09]}
Rxg2 {[%emt 0:00:00]} 45. Rd1 {[%emt 0:00:02]} Kg7 {[%emt 0:00:18]} 46. Nc4 {
[%emt 0:00:24]} Kf7 {[%emt 0:00:22]} 47. Nd2 {[%emt 0:00:19]} Rg3 {[%emt 0:00:
06]} 48. Qc4 {[%emt 0:00:05]} Qa5 {[%emt 0:00:11]} 49. Ne4 {[%emt 0:00:14]}
Nxe4 {[%emt 0:00:10]} 50. Qxe4 {[%emt 0:00:01]} Kg7 {[%emt 0:00:03]} 51. b4 {
[%emt 0:00:22]} Qc7 {[%emt 0:00:03]} 52. Kb3 {[%emt 0:00:11]} Qf7 {[%emt 0:00:
02]} 53. Rd3 {[%emt 0:00:13]} Qxh5 {[%emt 0:00:06]} 54. Qc4 {[%emt 0:00:00]}
Qf7 {[%emt 0:00:06]} 55. Qc8 {[%emt 0:00:00]} e4 {[%emt 0:00:08]} 56. Rd4 {
[%emt 0:00:11]} exf3 {[%emt 0:00:07]} 57. Qc4 {[%emt 0:00:06]} Rg4 {[%emt 0:00:
33]} 58. Rd3 {[%emt 0:00:02]} Rg5 {[%emt 0:00:19]} 59. Qd4+ {[%emt 0:00:09]}
Re5 {[%emt 0:00:07]} 60. Ka3 {[%emt 0:00:16]} Qf5 {[%emt 0:00:16]} 61. Rxf3 {
[%emt 0:00:06]} Qe4 {[%emt 0:00:05]} 62. Rxf4 {[%emt 0:00:28]} Qxd4 {[%emt 0:
00:02]} 63. Rxd4 {[%emt 0:00:13]} Re3 {[%emt 0:00:24]} 64. Kb3 {[%emt 0:00:00]}
h5 {[%emt 0:00:06]} 65. Kc2 {[%emt 0:00:09]} Kg6 {[%emt 0:00:06]} 66. c4 {
[%emt 0:00:02]} b6 {[%emt 0:00:20]} 67. a5 {[%emt 0:00:00]} bxa5 {[%emt 0:00:
00]} 68. c5 {[%emt 0:00:01]} axb4 {[%emt 0:00:06]} 69. cxd6 {[%emt 0:00:11]}
Re8 {[%emt 0:00:17]} 70. Rxb4 {[%emt 0:00:01]} Rd8 {[%emt 0:00:02]} 71. Rb6 {
[%emt 0:00:06]} h4 {[%emt 0:00:14]} 72. Rxa6 {[%emt 0:00:07]} h3 {[%emt 0:00:
01]} 73. Ra3 {[%emt 0:00:49]} Rxd6 {[%emt 0:00:03]} 74. Rxh3 {[%emt 0:00:02]}
Rxd5 {[%emt 0:00:10]} 1/2-1/2

[Event "RUS-ch Rapid 2021"]
[Site "Sochi"]
[Date "2021.10.13"]
[Round "9.4"]
[White "Lysyj, Igor"]
[Black "Petrov, Nikita"]
[Result "1/2-1/2"]
[ECO "E11"]
[WhiteElo "2603"]
[BlackElo "2539"]
[Annotator "RC"]
[PlyCount "82"]
[EventDate "2021.10.12"]
[EventType "swiss"]
[EventCountry "RUS"]
[SourceTitle "playchess.com"]
[Source "ChessBase"]
[SourceQuality "1"]
[TimeControl "900+10"]

1. d4 {[%emt 0:00:00]} Nf6 {[%emt 0:00:04]} 2. c4 {[%emt 0:00:11]} e6 {[%emt 0:
00:00]} 3. Nf3 {[%emt 0:00:00]} d5 {[%emt 0:00:03]} 4. g3 {[%emt 0:00:03]} Bb4+
{[%emt 0:00:00]} 5. Bd2 {[%emt 0:00:00]} Be7 {[%emt 0:00:01]} 6. Bg2 {[%emt 0:
00:02]} O-O {[%emt 0:00:00]} 7. O-O {[%emt 0:00:00]} Nbd7 {[%emt 0:00:09]} 8.
Qc2 {[%emt 0:00:00]} c6 {[%emt 0:00:00]} 9. Bf4 {[%emt 0:00:00]} b6 {[%emt 0:
00:23]} 10. Nbd2 {[%emt 0:00:11]} Nh5 {[%emt 0:00:33]} 11. Be5 {[%emt 0:00:12]}
Bb7 {[%emt 0:01:08]} 12. e4 {[%emt 0:00:42]} g5 {[%emt 0:00:59]} 13. cxd5 {
[%emt 0:00:49]} cxd5 {[%emt 0:00:33]} 14. Bc7 {[%emt 0:00:10]} Qe8 {[%emt 0:00:
32]} 15. Rac1 {[%emt 0:01:38]} Rc8 {[%emt 0:00:43]} 16. Qd3 {[%emt 0:00:40]} f6
{[%emt 0:04:21]} 17. Qe3 {[%emt 0:01:44]} Ng7 {[%emt 0:01:03]} 18. Rfe1 {
[%emt 0:02:23]} Qf7 {[%emt 0:00:47]} 19. h3 {[%emt 0:00:45]} Ne8 {[%emt 0:00:
40]} 20. Nh2 {[%emt 0:03:14]} Nxc7 {[%emt 0:01:57]} 21. Ng4 {[%emt 0:00:23]}
Kg7 {[%emt 0:00:16]} 22. Rxc7 {[%emt 0:00:04]} Rxc7 {[%emt 0:00:02]} 23. exd5 {
[%emt 0:00:10]} Bxd5 {[%emt 0:00:19]} 24. Bxd5 {[%emt 0:00:00]} exd5 {[%emt 0:
00:00]} 25. Qxe7 {[%emt 0:00:00]} Qxe7 {[%emt 0:00:25]} 26. Rxe7+ {[%emt 0:00:
00]} Rf7 {[%emt 0:00:00]} 27. Re8 {[%emt 0:00:02]} f5 {[%emt 0:00:32]} 28. Ne3
{[%emt 0:00:07]} f4 {[%emt 0:00:46]} 29. gxf4 {[%emt 0:01:45]} gxf4 {[%emt 0:
00:00]} 30. Nxd5 {[%emt 0:00:07]} Rc2 {[%emt 0:01:34]} 31. Ne4 {[%emt 0:00:14]}
Re2 {[%emt 0:00:11]} 32. Ndc3 {[%emt 0:02:53]} Re1+ {[%emt 0:00:17]} 33. Kh2 {
[%emt 0:00:00]} Nf8 {[%emt 0:01:34]} 34. Nb5 {[%emt 0:00:11]} Ng6 {[%emt 0:00:
21]} 35. Nbd6 {[%emt 0:00:08]} Rf8 {[%emt 0:00:09]} 36. Re6 {[%emt 0:00:20]}
Nh4 {[%emt 0:00:15]} 37. Ng5 {[%emt 0:01:08]} Nf3+ {[%emt 0:00:00]} 38. Kg2 {
[%emt 0:00:00]} Nh4+ {[%emt 0:00:07]} 39. Kh2 {[%emt 0:00:00]} Nf3+ {[%emt 0:
00:46]} 40. Kg2 {[%emt 0:00:00]} Nh4+ {[%emt 0:00:00]} 41. Kh2 {[%emt 0:00:00]}
Nf3+ {[%emt 0:00:18]} 1/2-1/2

[Event "RUS-ch Rapid 2021"]
[Site "Sochi"]
[Date "2021.10.13"]
[Round "9.5"]
[White "Pridorozhni, Aleksei"]
[Black "Dreev, Aleksey"]
[Result "1/2-1/2"]
[ECO "B11"]
[WhiteElo "2564"]
[BlackElo "2635"]
[Annotator "RC"]
[PlyCount "44"]
[EventDate "2021.10.12"]
[EventType "swiss"]
[EventCountry "RUS"]
[SourceTitle "playchess.com"]
[Source "ChessBase"]
[SourceQuality "1"]
[TimeControl "900+10"]

1. e4 {[%emt 0:00:41]} c6 {[%emt 0:00:00]} 2. Nc3 {[%emt 0:00:02]} d5 {[%emt 0:
00:05]} 3. Nf3 {[%emt 0:00:00]} dxe4 {[%emt 0:00:11]} 4. Nxe4 {[%emt 0:00:00]}
Nf6 {[%emt 0:00:00]} 5. Qe2 {[%emt 0:00:01]} Na6 {[%emt 0:00:42]} 6. Nxf6+ {
[%emt 0:00:09]} gxf6 {[%emt 0:00:02]} 7. d4 {[%emt 0:00:29]} h5 {[%emt 0:00:30]
} 8. c3 {[%emt 0:00:03]} h4 {[%emt 0:00:05]} 9. Qe4 {[%emt 0:00:17]} Qd5 {
[%emt 0:00:25]} 10. Qxd5 {[%emt 0:00:12]} cxd5 {[%emt 0:00:05]} 11. Bf4 {
[%emt 0:00:10]} Bf5 {[%emt 0:01:09]} 12. Bb5+ {[%emt 0:00:00]} Bd7 {[%emt 0:00:
00]} 13. Bd3 {[%emt 0:00:23]} Rc8 {[%emt 0:00:13]} 14. Kd2 {[%emt 0:00:22]} Nc7
{[%emt 0:00:29]} 15. g3 {[%emt 0:00:13]} h3 {[%emt 0:00:43]} 16. Rhe1 {[%emt 0:
00:14]} Bh6 {[%emt 0:02:43]} 17. Bxh6 {[%emt 0:00:08]} Rxh6 {[%emt 0:00:00]}
18. Nh4 {[%emt 0:00:22]} Kf8 {[%emt 0:00:17]} 19. f4 {[%emt 0:00:19]} Ne8 {
[%emt 0:00:48]} 20. Re3 {[%emt 0:01:21]} Nd6 {[%emt 0:00:00]} 21. Rae1 {
[%emt 0:00:06]} Re8 {[%emt 0:01:06]} 22. f5 {[%emt 0:00:44]} Bc8 {[%emt 0:00:
52]} 1/2-1/2

[Event "RUS-ch Rapid 2021"]
[Site "Sochi"]
[Date "2021.10.13"]
[Round "9.6"]
[White "Vastrukhin, Oleg"]
[Black "Alekseev, Evgeny"]
[Result "0-1"]
[ECO "D35"]
[WhiteElo "2382"]
[BlackElo "2602"]
[Annotator "RC"]
[PlyCount "138"]
[EventDate "2021.10.12"]
[EventType "swiss"]
[EventCountry "RUS"]
[SourceTitle "playchess.com"]
[Source "ChessBase"]
[SourceQuality "1"]
[TimeControl "900+10"]

1. g3 {[%emt 0:00:00]} e5 {[%emt 0:00:16]} 2. Bg2 {[%emt 0:00:06]} d5 {[%emt 0:
00:08]} 3. c3 {[%emt 0:00:56]} c6 {[%emt 0:00:41]} 4. d4 {[%emt 0:00:02]} exd4
{[%emt 0:00:39]} 5. cxd4 {[%emt 0:00:02]} Bd6 {[%emt 0:00:26]} 6. Nc3 {[%emt 0:
00:03]} Nf6 {[%emt 0:00:08]} 7. Nf3 {[%emt 0:00:55]} O-O {[%emt 0:00:05]} 8.
O-O {[%emt 0:00:06]} Nbd7 {[%emt 0:00:16]} 9. Bf4 {[%emt 0:00:12]} Bxf4 {
[%emt 0:00:13]} 10. gxf4 {[%emt 0:00:04]} Ne8 {[%emt 0:00:20]} 11. e3 {[%emt 0:
00:58]} Nd6 {[%emt 0:00:11]} 12. Rc1 {[%emt 0:00:26]} Nf6 {[%emt 0:00:36]} 13.
Ne5 {[%emt 0:00:55]} Bf5 {[%emt 0:00:58]} 14. Ne2 {[%emt 0:01:27]} Be6 {
[%emt 0:00:20]} 15. Ng3 {[%emt 0:00:12]} g6 {[%emt 0:00:06]} 16. Nd3 {[%emt 0:
01:22]} Qe7 {[%emt 0:00:10]} 17. b3 {[%emt 0:00:22]} Rae8 {[%emt 0:00:23]} 18.
a4 {[%emt 0:00:11]} Bc8 {[%emt 0:00:16]} 19. a5 {[%emt 0:00:11]} a6 {[%emt 0:
00:07]} 20. Kh1 {[%emt 0:01:31]} Kh8 {[%emt 0:00:34]} 21. Ne5 {[%emt 0:01:42]}
Ng8 {[%emt 0:00:33]} 22. Qd2 {[%emt 0:01:06]} Nh6 {[%emt 0:00:21]} 23. Qb4 {
[%emt 0:00:24]} Qd8 {[%emt 0:00:18]} 24. Qb6 {[%emt 0:00:25]} Qe7 {[%emt 0:00:
35]} 25. Qb4 {[%emt 0:00:28]} Nhf5 {[%emt 0:00:09]} 26. Nxf5 {[%emt 0:00:18]}
Bxf5 {[%emt 0:00:00]} 27. Rc3 {[%emt 0:01:17]} f6 {[%emt 0:00:51]} 28. Nd3 {
[%emt 0:00:07]} Be4 {[%emt 0:00:20]} 29. f3 {[%emt 0:01:11]} Bf5 {[%emt 0:00:
35]} 30. Nc5 {[%emt 0:00:01]} Nb5 {[%emt 0:01:33]} 31. e4 {[%emt 0:00:02]} Nxc3
{[%emt 0:00:25]} 32. Qxc3 {[%emt 0:00:00]} Bc8 {[%emt 0:00:03]} 33. Qe3 {
[%emt 0:00:19]} Qg7 {[%emt 0:00:59]} 34. Qf2 {[%emt 0:00:15]} Qc7 {[%emt 0:00:
06]} 35. Qd2 {[%emt 0:00:06]} Rd8 {[%emt 0:00:37]} 36. e5 {[%emt 0:00:29]} Rde8
{[%emt 0:00:15]} 37. Re1 {[%emt 0:00:25]} Qf7 {[%emt 0:00:12]} 38. Qe3 {
[%emt 0:00:40]} fxe5 {[%emt 0:00:38]} 39. fxe5 {[%emt 0:00:00]} Qf4 {[%emt 0:
00:03]} 40. Kg1 {[%emt 0:00:08]} Qxe3+ {[%emt 0:00:24]} 41. Rxe3 {[%emt 0:00:
01]} Rf4 {[%emt 0:00:00]} 42. Rd3 {[%emt 0:00:02]} Rh4 {[%emt 0:00:09]} 43. Rd2
{[%emt 0:00:28]} g5 {[%emt 0:00:28]} 44. Bf1 {[%emt 0:00:38]} Kg7 {[%emt 0:00:
12]} 45. Kg2 {[%emt 0:00:15]} Bh3+ {[%emt 0:00:44]} 46. Kf2 {[%emt 0:00:04]}
Bxf1 {[%emt 0:00:04]} 47. Kxf1 {[%emt 0:00:03]} Re7 {[%emt 0:00:11]} 48. Kg2 {
[%emt 0:00:08]} Kg6 {[%emt 0:00:02]} 49. Kg3 {[%emt 0:00:01]} Rf4 {[%emt 0:00:
16]} 50. h3 {[%emt 0:00:26]} h5 {[%emt 0:00:17]} 51. Rd3 {[%emt 0:00:18]} Kf5 {
[%emt 0:00:20]} 52. b4 {[%emt 0:00:17]} Rg7 {[%emt 0:01:02]} 53. Na4 {[%emt 0:
00:11]} g4 {[%emt 0:01:41]} 54. fxg4+ {[%emt 0:00:24]} hxg4 {[%emt 0:00:00]}
55. h4 {[%emt 0:00:25]} Rf1 {[%emt 0:00:22]} 56. Nc5 {[%emt 0:00:03]} Rg1+ {
[%emt 0:00:09]} 57. Kh2 {[%emt 0:00:17]} Rb1 {[%emt 0:00:12]} 58. Kg3 {[%emt 0:
00:37]} Rh1 {[%emt 0:01:06]} 59. Rd2 {[%emt 0:00:06]} Rh3+ {[%emt 0:00:42]} 60.
Kg2 {[%emt 0:00:00]} Rf3 {[%emt 0:00:00]} 61. Re2 {[%emt 0:00:31]} Re7 {
[%emt 0:00:07]} 62. h5 {[%emt 0:00:25]} Rf4 {[%emt 0:00:38]} 63. e6 {[%emt 0:
00:00]} Rxd4 {[%emt 0:00:25]} 64. Kg3 {[%emt 0:00:31]} Rf4 {[%emt 0:00:09]} 65.
Rh2 {[%emt 0:00:12]} Kg5 {[%emt 0:00:26]} 66. h6 {[%emt 0:00:10]} Rf3+ {
[%emt 0:00:01]} 67. Kg2 {[%emt 0:00:04]} Rh3 {[%emt 0:00:17]} 68. Rxh3 {
[%emt 0:00:04]} gxh3+ {[%emt 0:00:01]} 69. Kxh3 {[%emt 0:00:03]} Kxh6 {[%emt 0:
00:01]} 0-1

[Event "RUS-ch Rapid 2021"]
[Site "Sochi"]
[Date "2021.10.13"]
[Round "9.7"]
[White "Zakaryan, David"]
[Black "Kokarev, Dmitry"]
[Result "1/2-1/2"]
[ECO "E92"]
[WhiteElo "2283"]
[BlackElo "2579"]
[Annotator "ChessBase"]
[PlyCount "100"]
[EventDate "2021.10.12"]
[EventType "swiss"]
[EventCountry "RUS"]
[SourceTitle "playchess.com"]
[Source "ChessBase"]
[SourceQuality "1"]
[TimeControl "900+10"]

1. d4 {[%emt 0:00:00]} Nf6 {[%emt 0:00:04]} 2. c4 {[%emt 0:00:07]} g6 {[%emt 0:
00:10]} 3. Nc3 {[%emt 0:00:05]} Bg7 {[%emt 0:00:00]} 4. e4 {[%emt 0:00:00]} d6
{[%emt 0:00:00]} 5. Nf3 {[%emt 0:00:00]} O-O {[%emt 0:00:02]} 6. h3 {[%emt 0:
00:10]} e5 {[%emt 0:00:01]} 7. d5 {[%emt 0:00:10]} a5 {[%emt 0:00:03]} 8. Be2 {
[%emt 0:00:07]} Nfd7 {[%emt 0:00:31]} 9. Bg5 {[%emt 0:00:18]} Qe8 {[%emt 0:00:
00]} 10. g4 {[%emt 0:00:06]} Nc5 {[%emt 0:00:03]} 11. Nd2 {[%emt 0:00:09]} Nba6
{[%emt 0:00:05]} 12. a3 {[%emt 0:00:37]} Bd7 {[%emt 0:00:05]} 13. Qc2 {[%emt 0:
00:18]} c6 {[%emt 0:00:00]} 14. O-O {[%emt 0:02:12]} f5 {[%emt 0:00:17]} 15. f3
{[%emt 0:00:02]} Bf6 {[%emt 0:00:53]} 16. Be3 {[%emt 0:00:06]} Qe7 {[%emt 0:00:
03]} 17. Rab1 {[%emt 0:03:17]} a4 {[%emt 0:00:33]} 18. Nxa4 {[%emt 0:00:43]}
Nxa4 {[%emt 0:00:06]} 19. Qxa4 {[%emt 0:00:12]} cxd5 {[%emt 0:00:00]} 20. Qb3 {
[%emt 0:00:02]} d4 {[%emt 0:00:16]} 21. c5+ {[%emt 0:00:35]} Kg7 {[%emt 0:03:
21]} 22. cxd6 {[%emt 0:00:14]} Qxd6 {[%emt 0:00:03]} 23. Bf2 {[%emt 0:00:28]}
Nc5 {[%emt 0:00:28]} 24. Nc4 {[%emt 0:01:01]} Nxb3 {[%emt 0:03:55]} 25. Nxd6 {
[%emt 0:00:02]} fxg4 {[%emt 0:00:06]} 26. hxg4 {[%emt 0:00:22]} Nd2 {[%emt 0:
00:04]} 27. Rbc1 {[%emt 0:00:00]} Bc6 {[%emt 0:01:17]} 28. Rfd1 {[%emt 0:00:00]
} Bg5 {[%emt 0:00:02]} 29. Kg2 {[%emt 0:01:51]} Rad8 {[%emt 0:00:47]} 30. Nc4 {
[%emt 0:04:00]} d3 {[%emt 0:00:12]} 31. Bxd3 {[%emt 0:00:35]} Rxd3 {[%emt 0:00:
11]} 32. Nxe5 {[%emt 0:00:00]} Rdxf3 {[%emt 0:00:20]} 33. Bd4 {[%emt 0:00:20]}
Kg8 {[%emt 0:01:54]} 34. Rxc6 {[%emt 0:01:22]} bxc6 {[%emt 0:00:09]} 35. Rxd2 {
[%emt 0:00:00]} Bxd2 {[%emt 0:01:07]} 36. Nxf3 {[%emt 0:00:00]} Bf4 {[%emt 0:
00:00]} 37. Bc3 {[%emt 0:00:49]} Kf7 {[%emt 0:00:23]} 38. Ne1 {[%emt 0:00:29]}
Rd8 {[%emt 0:00:23]} 39. Nc2 {[%emt 0:00:00]} Be5 {[%emt 0:00:31]} 40. Bxe5 {
[%emt 0:00:06]} Rd2+ {[%emt 0:00:03]} 41. Kf3 {[%emt 0:00:10]} Rxc2 {[%emt 0:
00:00]} 42. a4 {[%emt 0:00:00]} Rc4 {[%emt 0:00:11]} 43. a5 {[%emt 0:00:00]}
Ra4 {[%emt 0:00:06]} 44. Bc3 {[%emt 0:00:00]} h6 {[%emt 0:00:27]} 45. Kf4 {
[%emt 0:00:00]} Ke6 {[%emt 0:00:02]} 46. Kf3 {[%emt 0:00:01]} c5 {[%emt 0:00:
04]} 47. Bd2 {[%emt 0:00:12]} Rd4 {[%emt 0:00:14]} 48. Bxh6 {[%emt 0:00:10]}
Rb4 {[%emt 0:00:16]} 49. Bg7 {[%emt 0:00:00]} g5 {[%emt 0:00:05]} 50. Bc3 {
[%emt 0:00:05]} Ra4 {[%emt 0:00:06]} 1/2-1/2

[Event "RUS-ch Rapid 2021"]
[Site "Sochi"]
[Date "2021.10.13"]
[Round "9.8"]
[White "Afanasiev, Nikita"]
[Black "Rozum, Ivan"]
[Result "0-1"]
[ECO "B15"]
[WhiteElo "2560"]
[BlackElo "2529"]
[Annotator "ChessBase"]
[PlyCount "89"]
[EventDate "2021.10.12"]
[EventType "swiss"]
[EventCountry "RUS"]
[SourceTitle "playchess.com"]
[Source "ChessBase"]
[SourceQuality "1"]
[TimeControl "900+10"]

1. e4 {[%emt 0:00:00]} c6 {[%emt 0:01:08]} 2. d4 {[%emt 0:00:09]} d5 {[%emt 0:
00:00]} 3. f3 {[%emt 0:00:04]} g6 {[%emt 0:00:00]} 4. Nc3 {[%emt 0:00:14]} Bg7
{[%emt 0:00:06]} 5. Be3 {[%emt 0:00:15]} Qb6 {[%emt 0:00:12]} 6. Qd2 {[%emt 0:
03:05]} Qxb2 {[%emt 0:00:00]} 7. Rb1 {[%emt 0:00:00]} Qa3 {[%emt 0:00:03]} 8.
Bd3 {[%emt 0:00:04]} dxe4 {[%emt 0:00:45]} 9. fxe4 {[%emt 0:00:32]} e5 {
[%emt 0:00:05]} 10. dxe5 {[%emt 0:02:25]} Bxe5 {[%emt 0:00:07]} 11. Rb3 {
[%emt 0:00:04]} Qa5 {[%emt 0:02:40]} 12. Nf3 {[%emt 0:00:37]} Bg7 {[%emt 0:00:
10]} 13. Bc4 {[%emt 0:00:18]} Nf6 {[%emt 0:01:17]} 14. e5 {[%emt 0:03:13]} Ng4
{[%emt 0:00:18]} 15. Bxf7+ {[%emt 0:03:39]} Kxf7 {[%emt 0:00:21]} 16. Ng5+ {
[%emt 0:00:04]} Ke8 {[%emt 0:04:16]} 17. O-O {[%emt 0:00:49]} Qxe5 {[%emt 0:00:
45]} 18. Re1 {[%emt 0:00:10]} Qxh2+ {[%emt 0:00:28]} 19. Kf1 {[%emt 0:00:00]}
Rf8+ {[%emt 0:00:12]} 20. Bf4+ {[%emt 0:01:24]} Be5 {[%emt 0:00:14]} 21. Rb4 {
[%emt 0:00:24]} Qh1+ {[%emt 0:01:25]} 22. Ke2 {[%emt 0:00:02]} Qxg2+ {[%emt 0:
00:43]} 23. Kd1 {[%emt 0:00:02]} Qxd2+ {[%emt 0:00:25]} 24. Kxd2 {[%emt 0:00:
01]} Rf5 {[%emt 0:00:27]} 25. Rbe4 {[%emt 0:00:40]} Nd7 {[%emt 0:00:15]} 26.
Nf3 {[%emt 0:00:11]} Nc5 {[%emt 0:00:34]} 27. Rxe5+ {[%emt 0:00:27]} Nxe5 {
[%emt 0:00:02]} 28. Nxe5 {[%emt 0:00:05]} Be6 {[%emt 0:00:43]} 29. Bg3 {
[%emt 0:00:05]} Rd8+ {[%emt 0:00:23]} 30. Ke3 {[%emt 0:00:00]} Kf8 {[%emt 0:00:
13]} 31. Ne2 {[%emt 0:00:16]} Rd5 {[%emt 0:00:28]} 32. Nf3 {[%emt 0:00:05]} Bc8
{[%emt 0:00:47]} 33. Ned4 {[%emt 0:00:31]} Rf7 {[%emt 0:00:07]} 34. c4 {
[%emt 0:00:33]} Re7+ {[%emt 0:00:25]} 35. Kd2 {[%emt 0:00:00]} Rdd7 {[%emt 0:
00:21]} 36. Be5 {[%emt 0:00:13]} Ne6 {[%emt 0:00:10]} 37. Kc3 {[%emt 0:00:24]}
Nxd4 {[%emt 0:00:04]} 38. Nxd4 {[%emt 0:00:00]} Kg8 {[%emt 0:00:00]} 39. Nf3 {
[%emt 0:00:07]} Rd8 {[%emt 0:00:06]} 40. Re3 {[%emt 0:00:06]} Rf8 {[%emt 0:00:
15]} 41. Kd4 {[%emt 0:00:13]} Rd8+ {[%emt 0:00:02]} 42. Ke4 {[%emt 0:00:03]}
Bf5+ {[%emt 0:00:05]} 43. Kf4 {[%emt 0:00:00]} Rd3 {[%emt 0:00:07]} 44. Re1 {
[%emt 0:00:19]} c5 {[%emt 0:00:02]} 45. Ng1 {[%emt 0:00:23]} 0-1

[Event "RUS-ch Rapid 2021"]
[Site "Sochi"]
[Date "2021.10.13"]
[Round "9.9"]
[White "Demidov, Mikhail"]
[Black "Timofeev, Artyom"]
[Result "1/2-1/2"]
[ECO "A49"]
[WhiteElo "2551"]
[BlackElo "2586"]
[Annotator "ChessBase"]
[PlyCount "103"]
[EventDate "2021.10.12"]
[EventType "swiss"]
[EventCountry "RUS"]
[SourceTitle "playchess.com"]
[Source "ChessBase"]
[SourceQuality "1"]
[TimeControl "900+10"]

1. Nf3 {[%emt 0:00:00]} Nf6 {[%emt 0:00:08]} 2. g3 {[%emt 0:00:03]} g6 {
[%emt 0:00:02]} 3. b3 {[%emt 0:00:02]} Bg7 {[%emt 0:00:03]} 4. Bb2 {[%emt 0:00:
01]} O-O {[%emt 0:00:03]} 5. Bg2 {[%emt 0:00:06]} d6 {[%emt 0:00:16]} 6. d4 {
[%emt 0:00:01]} Nbd7 {[%emt 0:00:08]} 7. O-O {[%emt 0:00:01]} Rb8 {[%emt 0:00:
40]} 8. Nbd2 {[%emt 0:00:31]} c5 {[%emt 0:00:01]} 9. c4 {[%emt 0:00:14]} b5 {
[%emt 0:00:05]} 10. dxc5 {[%emt 0:00:14]} dxc5 {[%emt 0:00:33]} 11. cxb5 {
[%emt 0:00:30]} Rxb5 {[%emt 0:00:06]} 12. Nc4 {[%emt 0:00:00]} Qc7 {[%emt 0:00:
08]} 13. Rc1 {[%emt 0:00:27]} Rb8 {[%emt 0:00:07]} 14. Qd2 {[%emt 0:00:25]} Bb7
{[%emt 0:01:03]} 15. Qa5 {[%emt 0:00:03]} Qxa5 {[%emt 0:01:06]} 16. Nxa5 {
[%emt 0:00:05]} Ba8 {[%emt 0:00:00]} 17. Rfd1 {[%emt 0:00:33]} Rb5 {[%emt 0:00:
58]} 18. Nc4 {[%emt 0:00:09]} Nb6 {[%emt 0:00:20]} 19. Nfe5 {[%emt 0:00:37]}
Bxg2 {[%emt 0:00:05]} 20. Kxg2 {[%emt 0:00:03]} Nxc4 {[%emt 0:00:24]} 21. Rxc4
{[%emt 0:00:37]} Rc8 {[%emt 0:00:03]} 22. Nd3 {[%emt 0:00:41]} Nd7 {[%emt 0:00:
11]} 23. Bxg7 {[%emt 0:00:07]} Kxg7 {[%emt 0:00:00]} 24. Rdc1 {[%emt 0:00:05]}
a5 {[%emt 0:00:27]} 25. R1c3 {[%emt 0:00:41]} f5 {[%emt 0:02:45]} 26. Kf1 {
[%emt 0:04:15]} Kf6 {[%emt 0:00:32]} 27. Ke1 {[%emt 0:03:28]} e5 {[%emt 0:00:
49]} 28. f3 {[%emt 0:00:45]} Ke6 {[%emt 0:00:40]} 29. a4 {[%emt 0:00:28]} Rb6 {
[%emt 0:00:30]} 30. Nxc5+ {[%emt 0:00:07]} Rxc5 {[%emt 0:00:02]} 31. Rxc5 {
[%emt 0:00:00]} Nxc5 {[%emt 0:00:00]} 32. Rxc5 {[%emt 0:00:05]} Rxb3 {[%emt 0:
00:00]} 33. Rxa5 {[%emt 0:00:00]} f4 {[%emt 0:01:25]} 34. Ra6+ {[%emt 0:03:46]}
Kf5 {[%emt 0:00:16]} 35. g4+ {[%emt 0:00:27]} Kg5 {[%emt 0:00:00]} 36. Re6 {
[%emt 0:00:00]} Re3 {[%emt 0:00:56]} 37. Kf2 {[%emt 0:00:16]} Kh4 {[%emt 0:01:
07]} 38. Re7 {[%emt 0:00:13]} h5 {[%emt 0:00:19]} 39. gxh5 {[%emt 0:00:08]}
gxh5 {[%emt 0:00:48]} 40. a5 {[%emt 0:00:13]} Kh3 {[%emt 0:00:07]} 41. a6 {
[%emt 0:00:18]} h4 {[%emt 0:00:10]} 42. a7 {[%emt 0:00:51]} Ra3 {[%emt 0:00:00]
} 43. Rxe5 {[%emt 0:00:30]} Rxa7 {[%emt 0:00:05]} 44. Rf5 {[%emt 0:00:05]} Ra4
{[%emt 0:00:02]} 45. Rh5 {[%emt 0:00:05]} Rb4 {[%emt 0:00:08]} 46. Rh7 {
[%emt 0:00:06]} Ra4 {[%emt 0:00:00]} 47. Rh8 {[%emt 0:00:18]} Rb4 {[%emt 0:00:
03]} 48. Rh7 {[%emt 0:00:16]} Ra4 {[%emt 0:00:01]} 49. Rh6 {[%emt 0:00:00]} Rb4
{[%emt 0:00:00]} 50. Rh5 {[%emt 0:00:00]} Ra4 {[%emt 0:00:04]} 51. Rh7 {
[%emt 0:00:25]} Rb4 {[%emt 0:00:02]} 52. Rh8 {[%emt 0:00:10]} 1/2-1/2